[Event "FIDE World Rapid Chess Championship 2021"]
[White "Indjic, Aleksandar"]
[Black "Movsesian, Sergei"]
[WhiteFideId "911925"]
[BlackFideId "310204"]
[WhiteElo "2544"]
[BlackElo "2667"]
[Result "1/2-1/2"]
[Round "12"]
[TimeControl "900+10"]
[Date "2021.12.28"]
[WhiteClock "0:03:39"]
[BlackClock "0:02:03"]

1. d4 {[%clk 0:15:00]}  d5 {[%clk 0:15:00]} 2. c4 {[%clk 0:15:00]}  c6 {[%clk 0:15:00]} 3. cxd5 {[%clk 0:15:00]}  cxd5 {[%clk 0:15:00]} 4. Bg5 {[%clk 0:15:00]}  h6 {[%clk 0:15:00]} 5. Bh4 {[%clk 0:15:00]}  Qb6 {[%clk 0:15:00]} 6. Nc3 {[%clk 0:15:00]}  e6 {[%clk 0:15:00]} 7. Qd2 {[%clk 0:15:00]}  Nc6 {[%clk 0:14:48]} 8. e3 {[%clk 0:15:40]}  Bd6 {[%clk 0:14:48]} 9. Bd3 {[%clk 0:15:40]}  Nge7 {[%clk 0:14:48]} 10. Bg3 {[%clk 0:15:40]}  Bxg3 {[%clk 0:14:48]} 11. hxg3 {[%clk 0:15:40]}  Bd7 {[%clk 0:14:48]} 12. Nge2 {[%clk 0:15:40]}  e5 {[%clk 0:14:48]} 13. dxe5 {[%clk 0:15:40]}  Nxe5 {[%clk 0:14:48]} 14. b3 {[%clk 0:15:40]}  O-O {[%clk 0:13:41]} 15. O-O {[%clk 0:14:56]}  Rfd8 {[%clk 0:13:41]} 16. Rac1 {[%clk 0:14:56]}  Rac8 {[%clk 0:11:50]} 17. Bb1 {[%clk 0:14:39]}  Qa5 {[%clk 0:11:50]} 18. Qb2 {[%clk 0:11:19]}  Ng4 {[%clk 0:09:31]} 19. Nd4 {[%clk 0:11:19]}  Qb6 {[%clk 0:08:16]} 20. Qd2 {[%clk 0:10:06]}  Qf6 {[%clk 0:08:16]} 21. f3 {[%clk 0:09:13]}  Ne5 {[%clk 0:06:42]} 22. Nce2 {[%clk 0:09:13]}  Qd6 {[%clk 0:06:44]} 23. Rxc8 {[%clk 0:06:36]}  Rxc8 {[%clk 0:06:44]} 24. Rc1 {[%clk 0:06:36]}  Rxc1+ {[%clk 0:06:44]} 25. Qxc1 {[%clk 0:06:36]}  N5c6 {[%clk 0:06:44]} 26. Kf2 {[%clk 0:06:36]}  a6 {[%clk 0:06:44]} 27. a3 {[%clk 0:06:36]}  Nxd4 {[%clk 0:06:44]} 28. Nxd4 {[%clk 0:06:36]}  Nc6 {[%clk 0:06:44]} 29. b4 {[%clk 0:07:18]}  Nxd4 {[%clk 0:05:12]} 30. exd4 {[%clk 0:07:18]}  Be6 {[%clk 0:05:12]} 31. Qc5 {[%clk 0:07:18]}  Qd8 {[%clk 0:03:40]} 32. Qc1 {[%clk 0:06:42]}  Qb6 {[%clk 0:03:40]} 33. Qf4 {[%clk 0:04:54]}  Kf8 {[%clk 0:03:26]} 34. Bd3 {[%clk 0:04:54]}  Ke7 {[%clk 0:02:03]} 35. Ke3 {[%clk 0:03:39]}  Qd6 {[%clk 0:02:03]} 36. Qe5 {[%clk 0:03:39]} 1/2-1/2


[Site "http://www.Chess.com"]

[Event "FIDE World Rapid Chess Championship 2021"]
[White "Zvjaginsev, Vadim"]
[Black "Vidit, Santosh Gujrathi"]
[WhiteFideId "4113403"]
[BlackFideId "5029465"]
[WhiteElo "2539"]
[BlackElo "2629"]
[Result "0-1"]
[Round "12"]
[TimeControl "900+10"]
[Date "2021.12.28"]
[WhiteClock "0:03:01"]
[BlackClock "0:00:20"]

1. e4 {[%clk 0:15:00]}  e5 {[%clk 0:15:18]} 2. Nf3 {[%clk 0:15:18]}  Nc6 {[%clk 0:15:18]} 3. g3 {[%clk 0:15:18]}  Nf6 {[%clk 0:15:18]} 4. d3 {[%clk 0:15:18]}  g6 {[%clk 0:15:18]} 5. Bg2 {[%clk 0:15:18]}  Bg7 {[%clk 0:15:18]} 6. O-O {[%clk 0:15:18]}  O-O {[%clk 0:15:18]} 7. Re1 {[%clk 0:15:18]}  d5 {[%clk 0:15:18]} 8. exd5 {[%clk 0:15:46]}  Nxd5 {[%clk 0:15:31]} 9. Nc3 {[%clk 0:15:46]}  Nde7 {[%clk 0:15:31]} 10. Rb1 {[%clk 0:15:46]}  a5 {[%clk 0:15:31]} 11. b3 {[%clk 0:15:46]}  Re8 {[%clk 0:15:31]} 12. Ba3 {[%clk 0:15:46]}  Nf5 {[%clk 0:15:31]} 13. Nb5 {[%clk 0:15:46]}  Nb4 {[%clk 0:15:31]} 14. Bb2 {[%clk 0:15:46]}  c6 {[%clk 0:15:31]} 15. Nc3 {[%clk 0:15:46]}  Nd4 {[%clk 0:14:46]} 16. Rc1 {[%clk 0:14:26]}  Bg4 {[%clk 0:14:46]} 17. a3 {[%clk 0:11:48]}  Na6 {[%clk 0:14:46]} 18. Ne4 {[%clk 0:11:48]}  Bxf3 {[%clk 0:14:14]} 19. Bxf3 {[%clk 0:11:19]}  Nxf3+ {[%clk 0:14:14]} 20. Qxf3 {[%clk 0:11:19]}  f5 {[%clk 0:14:14]} 21. Nc3 {[%clk 0:11:19]}  Nc7 {[%clk 0:14:14]} 22. Qg2 {[%clk 0:11:24]}  Qd6 {[%clk 0:08:12]} 23. Nb1 {[%clk 0:11:24]}  b5 {[%clk 0:08:12]} 24. a4 {[%clk 0:10:13]}  Nd5 {[%clk 0:06:57]} 25. axb5 {[%clk 0:09:36]}  cxb5 {[%clk 0:05:22]} 26. Rcd1 {[%clk 0:09:36]}  Nb4 {[%clk 0:05:22]} 27. Na3 {[%clk 0:07:14]}  Qd7 {[%clk 0:04:49]} 28. Bxe5 {[%clk 0:07:14]}  Bxe5 {[%clk 0:04:49]} 29. Rxe5 {[%clk 0:07:14]}  Rxe5 {[%clk 0:04:49]} 30. Qxa8+ {[%clk 0:07:14]}  Kg7 {[%clk 0:04:49]} 31. Qxa5 {[%clk 0:07:14]}  Nc6 {[%clk 0:04:49]} 32. Qb6 {[%clk 0:07:00]}  Nd4 {[%clk 0:04:17]} 33. c4 {[%clk 0:07:00]}  f4 {[%clk 0:04:08]} 34. Nxb5 {[%clk 0:05:11]}  Nf3+ {[%clk 0:04:08]} 35. Kg2 {[%clk 0:05:11]}  Nh4+ {[%clk 0:01:39]} 36. Kg1 {[%clk 0:04:40]}  Qg4 {[%clk 0:01:39]} 37. Ra1 {[%clk 0:04:16]}  Nf3+ {[%clk 0:00:15]} 38. Kh1 {[%clk 0:03:01]}  fxg3 {[%clk 0:00:20]} 39. fxg3 {[%clk 0:03:01]}  Re2 {[%clk 0:00:20]} 0-1


[Site "http://www.Chess.com"]

[Event "FIDE World Rapid Chess Championship 2021"]
[White "Mastrovasilis, Dimitrios"]
[Black "Heimann, Andreas"]
[WhiteFideId "4202694"]
[BlackFideId "24624632"]
[WhiteElo "2534"]
[BlackElo "2616"]
[Result "1-0"]
[Round "12"]
[TimeControl "900+10"]
[Date "2021.12.28"]
[WhiteClock "0:02:25"]
[BlackClock "0:05:27"]

1. e4 {[%clk 0:15:17]}  e5 {[%clk 0:15:00]} 2. Nf3 {[%clk 0:15:17]}  Nc6 {[%clk 0:15:00]} 3. Nc3 {[%clk 0:15:17]}  Nf6 {[%clk 0:15:00]} 4. d4 {[%clk 0:15:17]}  exd4 {[%clk 0:15:00]} 5. Nxd4 {[%clk 0:15:17]}  Bb4 {[%clk 0:15:00]} 6. Nxc6 {[%clk 0:15:17]}  bxc6 {[%clk 0:15:00]} 7. Bd3 {[%clk 0:15:17]}  d5 {[%clk 0:15:00]} 8. exd5 {[%clk 0:15:17]}  O-O {[%clk 0:15:00]} 9. O-O {[%clk 0:15:17]}  Bg4 {[%clk 0:15:00]} 10. Ne2 {[%clk 0:15:44]}  cxd5 {[%clk 0:15:38]} 11. h3 {[%clk 0:15:44]}  Bh5 {[%clk 0:15:38]} 12. c4 {[%clk 0:15:44]}  Rb8 {[%clk 0:15:38]} 13. Qc2 {[%clk 0:15:44]}  dxc4 {[%clk 0:15:38]} 14. Qxc4 {[%clk 0:15:44]}  Bd6 {[%clk 0:15:38]} 15. a3 {[%clk 0:14:42]}  Bxe2 {[%clk 0:14:22]} 16. Bxe2 {[%clk 0:14:42]}  Qe7 {[%clk 0:14:22]} 17. Bf3 {[%clk 0:14:42]}  Qe5 {[%clk 0:12:56]} 18. g3 {[%clk 0:10:46]}  Rfe8 {[%clk 0:12:56]} 19. Kg2 {[%clk 0:10:46]}  h5 {[%clk 0:12:01]} 20. Ra2 {[%clk 0:09:17]}  Qf5 {[%clk 0:10:32]} 21. b4 {[%clk 0:08:09]}  a5 {[%clk 0:08:16]} 22. Bc6 {[%clk 0:07:48]}  Re5 {[%clk 0:06:55]} 23. Bf4 {[%clk 0:06:26]}  Re6 {[%clk 0:06:55]} 24. Bxd6 {[%clk 0:04:22]}  Rxd6 {[%clk 0:06:52]} 25. b5 {[%clk 0:04:22]}  Rbd8 {[%clk 0:06:52]} 26. Re2 {[%clk 0:04:22]}  Rd4 {[%clk 0:06:52]} 27. Qc2 {[%clk 0:03:28]}  Qg5 {[%clk 0:05:27]} 28. Rfe1 {[%clk 0:03:28]}  Rd2 {[%clk 0:05:27]} 29. h4 {[%clk 0:02:25]} 1-0


[Site "http://www.Chess.com"]

[Event "FIDE World Rapid Chess Championship 2021"]
[White "Moroni, Luca Jr"]
[Black "Quparadze, Giga"]
[WhiteFideId "865834"]
[BlackFideId "13602250"]
[WhiteElo "2519"]
[BlackElo "2583"]
[Result "1-0"]
[Round "12"]
[TimeControl "900+10"]
[Date "2021.12.28"]
[WhiteClock "0:00:35"]
[BlackClock "0:06:11"]

1. d4 {[%clk 0:15:00]}  Nf6 {[%clk 0:15:00]} 2. c4 {[%clk 0:15:37]}  e6 {[%clk 0:15:28]} 3. Nc3 {[%clk 0:15:37]}  Bb4 {[%clk 0:15:28]} 4. Nf3 {[%clk 0:15:37]}  b6 {[%clk 0:15:37]} 5. e3 {[%clk 0:15:37]}  Ne4 {[%clk 0:15:37]} 6. Qc2 {[%clk 0:15:37]}  Bb7 {[%clk 0:15:37]} 7. Bd3 {[%clk 0:15:37]}  f5 {[%clk 0:15:37]} 8. O-O {[%clk 0:15:37]}  Bxc3 {[%clk 0:15:37]} 9. bxc3 {[%clk 0:15:37]}  O-O {[%clk 0:15:37]} 10. Nd2 {[%clk 0:15:37]}  Qh4 {[%clk 0:15:37]} 11. f3 {[%clk 0:15:37]}  Nxd2 {[%clk 0:15:37]} 12. Bxd2 {[%clk 0:15:37]}  Nc6 {[%clk 0:15:37]} 13. e4 {[%clk 0:14:52]}  fxe4 {[%clk 0:16:56]} 14. Bxe4 {[%clk 0:14:52]}  Na5 {[%clk 0:16:56]} 15. Bxb7 {[%clk 0:14:52]}  Nxb7 {[%clk 0:16:56]} 16. Qa4 {[%clk 0:14:52]}  Rf7 {[%clk 0:16:56]} 17. Rae1 {[%clk 0:14:52]}  Qh5 {[%clk 0:16:56]} 18. Re5 {[%clk 0:14:16]}  Qg6 {[%clk 0:17:01]} 19. c5 {[%clk 0:14:16]}  Qd3 {[%clk 0:17:01]} 20. Rd1 {[%clk 0:07:45]}  Na5 {[%clk 0:16:56]} 21. Be1 {[%clk 0:07:45]}  Qc4 {[%clk 0:16:56]} 22. Qc2 {[%clk 0:07:45]}  Nc6 {[%clk 0:17:06]} 23. Re4 {[%clk 0:06:16]}  bxc5 {[%clk 0:17:06]} 24. Rh4 {[%clk 0:06:16]}  g5 {[%clk 0:15:19]} 25. Rg4 {[%clk 0:04:59]}  cxd4 {[%clk 0:15:19]} 26. Rxg5+ {[%clk 0:04:59]}  Kh8 {[%clk 0:15:19]} 27. Qe4 {[%clk 0:04:59]}  Rg8 {[%clk 0:14:23]} 28. Rxg8+ {[%clk 0:03:57]}  Kxg8 {[%clk 0:14:23]} 29. cxd4 {[%clk 0:03:57]}  Rg7 {[%clk 0:14:14]} 30. Bg3 {[%clk 0:03:49]}  Qxa2 {[%clk 0:14:14]} 31. d5 {[%clk 0:03:27]}  Qb3 {[%clk 0:10:11]} 32. Qe2 {[%clk 0:03:27]}  Ne7 {[%clk 0:10:11]} 33. dxe6 {[%clk 0:03:27]}  Qxe6 {[%clk 0:10:11]} 34. Qxe6+ {[%clk 0:03:27]}  dxe6 {[%clk 0:10:11]} 35. Be5 {[%clk 0:03:27]}  Rg5 {[%clk 0:10:22]} 36. f4 {[%clk 0:02:02]}  Rh5 {[%clk 0:10:22]} 37. Rd8+ {[%clk 0:02:02]}  Kf7 {[%clk 0:10:22]} 38. Rd7 {[%clk 0:02:02]}  Ke8 {[%clk 0:10:22]} 39. Rxc7 {[%clk 0:02:02]}  a5 {[%clk 0:10:22]} 40. g3 {[%clk 0:02:02]}  Ng6 {[%clk 0:10:22]} 41. Bc3 {[%clk 0:01:01]}  Ne7 {[%clk 0:09:48]} 42. Be5 {[%clk 0:01:01]}  Ng6 {[%clk 0:09:48]} 43. Bf6 {[%clk 0:01:01]}  Rf5 {[%clk 0:09:48]} 44. Bc3 {[%clk 0:01:01]}  Ne7 {[%clk 0:08:47]} 45. Ra7 {[%clk 0:00:40]}  Nc6 {[%clk 0:08:47]} 46. Rxh7 {[%clk 0:00:40]}  Rc5 {[%clk 0:08:47]} 47. Bf6 {[%clk 0:00:40]}  a4 {[%clk 0:08:47]} 48. Bb2 {[%clk 0:00:40]}  Rb5 {[%clk 0:08:47]} 49. Bf6 {[%clk 0:00:40]}  a3 {[%clk 0:08:47]} 50. Rc7 {[%clk 0:00:40]}  Rb6 {[%clk 0:08:47]} 51. Rc8+ {[%clk 0:00:40]}  Kf7 {[%clk 0:08:47]} 52. Bc3 {[%clk 0:00:40]}  Ra6 {[%clk 0:08:54]} 53. Rc7+ {[%clk 0:00:32]}  Ke8 {[%clk 0:08:54]} 54. h4 {[%clk 0:00:32]}  a2 {[%clk 0:08:54]} 55. Kg2 {[%clk 0:00:32]}  Kd8 {[%clk 0:08:54]} 56. Rb7 {[%clk 0:00:32]}  Ra3 {[%clk 0:08:54]} 57. Ba1 {[%clk 0:00:29]}  Ne7 {[%clk 0:08:20]} 58. h5 {[%clk 0:00:29]}  Nf5 {[%clk 0:08:20]} 59. Kf2 {[%clk 0:00:29]}  Ne3 {[%clk 0:08:20]} 60. Rg7 {[%clk 0:00:29]}  Nf5 {[%clk 0:08:20]} 61. Rg6 {[%clk 0:00:29]}  Rd3 {[%clk 0:08:20]} 62. Rxe6 {[%clk 0:00:29]}  Rd2+ {[%clk 0:08:20]} 63. Kf3 {[%clk 0:00:29]}  Rd1 {[%clk 0:08:20]} 64. Bf6+ {[%clk 0:00:29]}  Kd7 {[%clk 0:08:20]} 65. Ra6 {[%clk 0:00:29]}  Rf1+ {[%clk 0:08:20]} 66. Kg4 {[%clk 0:00:40]}  Ne3+ {[%clk 0:07:09]} 67. Kg5 {[%clk 0:00:40]}  Rg1 {[%clk 0:07:09]} 68. h6 {[%clk 0:00:40]}  Rxg3+ {[%clk 0:07:09]} 69. Kh5 {[%clk 0:00:40]}  Nd5 {[%clk 0:07:09]} 70. Be5 {[%clk 0:00:40]}  Rh3+ {[%clk 0:07:09]} 71. Kg4 {[%clk 0:00:40]}  Rh1 {[%clk 0:06:11]} 72. h7 {[%clk 0:00:35]}  Ne3+ {[%clk 0:06:11]} 73. Kf3 {[%clk 0:00:35]}  Rh3+ {[%clk 0:06:11]} 74. Ke4 {[%clk 0:00:35]}  Nc4 {[%clk 0:06:11]} 75. h8=Q {[%clk 0:00:35]} 1-0


[Site "http://www.Chess.com"]

[Event "FIDE World Rapid Chess Championship 2021"]
[White "Sankalp, Gupta"]
[Black "Ter-Sahakyan, Samvel"]
[WhiteFideId "5097010"]
[BlackFideId "13302531"]
[WhiteElo "2266"]
[BlackElo "2573"]
[Result "1/2-1/2"]
[Round "12"]
[TimeControl "900+10"]
[Date "2021.12.28"]
[WhiteClock "0:01:24"]
[BlackClock "0:00:25"]

1. d4 {[%clk 0:15:00]}  Nf6 {[%clk 0:15:17]} 2. Nf3 {[%clk 0:15:18]}  d5 {[%clk 0:15:17]} 3. c3 {[%clk 0:15:18]}  c6 {[%clk 0:15:17]} 4. Qc2 {[%clk 0:15:18]}  Bg4 {[%clk 0:14:20]} 5. Ne5 {[%clk 0:15:51]}  Bh5 {[%clk 0:14:20]} 6. c4 {[%clk 0:15:51]}  e6 {[%clk 0:14:20]} 7. Qb3 {[%clk 0:15:51]}  Nbd7 {[%clk 0:14:20]} 8. Qxb7 {[%clk 0:14:21]}  Nxe5 {[%clk 0:12:28]} 9. dxe5 {[%clk 0:14:21]}  Nd7 {[%clk 0:12:28]} 10. Qxc6 {[%clk 0:13:38]}  Rc8 {[%clk 0:12:37]} 11. Qa6 {[%clk 0:13:38]}  Rxc4 {[%clk 0:11:45]} 12. Bd2 {[%clk 0:10:25]}  Bb4 {[%clk 0:11:15]} 13. Nc3 {[%clk 0:07:07]}  O-O {[%clk 0:10:16]} 14. e3 {[%clk 0:07:07]}  Rc7 {[%clk 0:10:16]} 15. Qa4 {[%clk 0:06:08]}  Qb8 {[%clk 0:08:57]} 16. Be2 {[%clk 0:04:20]}  Nc5 {[%clk 0:06:45]} 17. Qc2 {[%clk 0:01:23]}  Bxe2 {[%clk 0:06:45]} 18. Kxe2 {[%clk 0:01:23]}  Bxc3 {[%clk 0:06:45]} 19. Bxc3 {[%clk 0:01:40]}  Qb5+ {[%clk 0:01:52]} 20. Kd1 {[%clk 0:01:40]}  Rfc8 {[%clk 0:01:52]} 21. Re1 {[%clk 0:01:40]}  Na4 {[%clk 0:01:05]} 22. Rc1 {[%clk 0:00:24]}  Nxc3+ {[%clk 0:01:05]} 23. bxc3 {[%clk 0:00:24]}  Rxc3 {[%clk 0:01:05]} 24. Qxc3 {[%clk 0:00:24]}  Rxc3 {[%clk 0:01:05]} 25. Rxc3 {[%clk 0:00:24]}  Qb1+ {[%clk 0:01:05]} 26. Kd2 {[%clk 0:00:24]}  Qxa2+ {[%clk 0:01:05]} 27. Rc2 {[%clk 0:00:24]}  Qa5+ {[%clk 0:01:05]} 28. Ke2 {[%clk 0:00:24]}  Qb5+ {[%clk 0:01:05]} 29. Kd2 {[%clk 0:00:24]}  h5 {[%clk 0:01:05]} 30. Ra1 {[%clk 0:00:32]}  Qb4+ {[%clk 0:00:57]} 31. Ke2 {[%clk 0:00:32]}  a5 {[%clk 0:00:57]} 32. Rca2 {[%clk 0:00:32]}  Qc4+ {[%clk 0:00:57]} 33. Ke1 {[%clk 0:00:32]}  Qe4 {[%clk 0:00:36]} 34. Kf1 {[%clk 0:00:36]}  Qxe5 {[%clk 0:00:36]} 35. Kg1 {[%clk 0:00:36]}  g5 {[%clk 0:00:36]} 36. h3 {[%clk 0:00:36]}  Kg7 {[%clk 0:00:36]} 37. Rxa5 {[%clk 0:00:36]}  Kg6 {[%clk 0:00:36]} 38. Ra8 {[%clk 0:00:36]}  Kg7 {[%clk 0:00:36]} 39. Rb1 {[%clk 0:00:36]}  Qc3 {[%clk 0:00:36]} 40. Ra7 {[%clk 0:00:36]}  Kg6 {[%clk 0:00:36]} 41. Ra4 {[%clk 0:00:36]}  Qc2 {[%clk 0:00:36]} 42. Rab4 {[%clk 0:00:36]}  Qd3 {[%clk 0:00:36]} 43. Rf1 {[%clk 0:00:36]}  Qc3 {[%clk 0:00:36]} 44. Rd4 {[%clk 0:00:36]}  Qb2 {[%clk 0:00:36]} 45. h4 {[%clk 0:00:36]}  g4 {[%clk 0:00:36]} 46. g3 {[%clk 0:00:36]}  Qc3 {[%clk 0:00:36]} 47. Rb1 {[%clk 0:00:36]}  Qc2 {[%clk 0:00:36]} 48. Rdb4 {[%clk 0:00:36]}  Qd3 {[%clk 0:00:25]} 49. Rb8 {[%clk 0:01:24]}  Kg7 {[%clk 0:00:25]} 50. Rc1 {[%clk 0:01:24]}  Qe2 {[%clk 0:00:25]} 51. Rbb1 {[%clk 0:01:24]}  Qd3 {[%clk 0:00:25]} 52. Re1 {[%clk 0:01:24]}  Qc2 {[%clk 0:00:25]} 53. Rbc1 {[%clk 0:01:24]}  Qd3 {[%clk 0:00:25]} 54. Rcd1 {[%clk 0:01:24]}  Qc2 {[%clk 0:00:25]} 55. Rd4 {[%clk 0:01:24]}  Qc3 {[%clk 0:00:25]} 56. Red1 {[%clk 0:01:24]}  Qc2 {[%clk 0:00:25]} 57. R1d2 {[%clk 0:01:24]}  Qb1+ {[%clk 0:00:25]} 58. Kg2 {[%clk 0:01:24]}  Qb7 {[%clk 0:00:25]} 59. Kh2 {[%clk 0:01:24]}  Qb1 {[%clk 0:00:25]} 60. Rd1 {[%clk 0:01:24]} 1/2-1/2


[Site "http://www.Chess.com"]

[Event "FIDE World Rapid Chess Championship 2021"]
[White "Alonso Rosell, Alvar"]
[Black "Durarbayli, Vasif"]
[WhiteFideId "2270544"]
[BlackFideId "13402935"]
[WhiteElo "2571"]
[BlackElo "2532"]
[Result "1-0"]
[Round "12"]
[TimeControl "900+10"]
[Date "2021.12.28"]
[WhiteClock "0:01:44"]
[BlackClock "0:00:12"]

1. d4 {[%clk 0:15:00]}  Nf6 {[%clk 0:15:00]} 2. Bf4 {[%clk 0:15:00]}  c5 {[%clk 0:15:19]} 3. d5 {[%clk 0:15:28]}  b5 {[%clk 0:15:19]} 4. c3 {[%clk 0:15:36]}  g6 {[%clk 0:14:28]} 5. e4 {[%clk 0:09:48]}  Nxe4 {[%clk 0:14:28]} 6. Bxb5 {[%clk 0:09:48]}  Bg7 {[%clk 0:11:18]} 7. Nf3 {[%clk 0:09:32]}  O-O {[%clk 0:09:33]} 8. O-O {[%clk 0:08:49]}  Qb6 {[%clk 0:07:29]} 9. Qe2 {[%clk 0:08:53]}  Nf6 {[%clk 0:07:29]} 10. c4 {[%clk 0:08:53]}  Nh5 {[%clk 0:05:48]} 11. Be5 {[%clk 0:08:38]}  Bxe5 {[%clk 0:05:48]} 12. Qxe5 {[%clk 0:08:38]}  d6 {[%clk 0:05:48]} 13. Qxe7 {[%clk 0:08:38]}  a6 {[%clk 0:02:38]} 14. Ba4 {[%clk 0:07:59]}  Bg4 {[%clk 0:02:38]} 15. Nbd2 {[%clk 0:07:59]}  Ra7 {[%clk 0:02:38]} 16. Qh4 {[%clk 0:07:59]}  Bxf3 {[%clk 0:02:38]} 17. Nxf3 {[%clk 0:07:59]}  Qxb2 {[%clk 0:02:38]} 18. Rfe1 {[%clk 0:07:19]}  Nd7 {[%clk 0:01:32]} 19. Rab1 {[%clk 0:07:19]}  Qxa2 {[%clk 0:00:50]} 20. Bc6 {[%clk 0:05:29]}  Ng7 {[%clk 0:00:50]} 21. Qf4 {[%clk 0:05:29]}  a5 {[%clk 0:00:50]} 22. Qxd6 {[%clk 0:04:34]}  Nf5 {[%clk 0:00:00]} 23. Qf4 {[%clk 0:04:34]}  h5 {[%clk 0:00:00]} 24. h3 {[%clk 0:04:34]}  a4 {[%clk 0:00:00]} 25. g4 {[%clk 0:04:34]}  Ng7 {[%clk 0:00:00]} 26. Ng5 {[%clk 0:04:34]}  a3 {[%clk 0:00:07]} 27. Bxd7 {[%clk 0:03:03]}  Rxd7 {[%clk 0:00:07]} 28. Ne4 {[%clk 0:03:03]}  f5 {[%clk 0:00:07]} 29. Nxc5 {[%clk 0:03:03]}  Rdf7 {[%clk 0:00:07]} 30. g5 {[%clk 0:03:03]}  Qc2 {[%clk 0:00:07]} 31. Rbc1 {[%clk 0:03:03]}  Qb2 {[%clk 0:00:07]} 32. Nd3 {[%clk 0:03:03]}  Qb6 {[%clk 0:00:00]} 33. c5 {[%clk 0:01:56]}  Qa5 {[%clk 0:00:00]} 34. Ne5 {[%clk 0:01:56]}  Re8 {[%clk 0:00:00]} 35. d6 {[%clk 0:01:44]}  Kh7 {[%clk 0:00:12]} 36. Red1 {[%clk 0:01:44]}  Ne6 {[%clk 0:00:12]} 37. Qc4 {[%clk 0:01:44]}  Rff8 {[%clk 0:00:12]} 38. d7 {[%clk 0:01:44]}  Nxg5 {[%clk 0:00:12]} 39. dxe8=Q {[%clk 0:01:44]}  Rxe8 {[%clk 0:00:12]} 40. Rd7+ {[%clk 0:01:44]}  Kh6 {[%clk 0:00:12]} 41. Qf4 {[%clk 0:01:44]}  Rxe5 {[%clk 0:00:12]} 42. h4 {[%clk 0:01:44]}  Re1+ {[%clk 0:00:12]} 43. Rxe1 {[%clk 0:01:44]}  Qxe1+ {[%clk 0:00:12]} 44. Kh2 {[%clk 0:01:44]} 1-0


[Site "http://www.Chess.com"]

[Event "FIDE World Rapid Chess Championship 2021"]
[White "Sadhwani, Raunak"]
[Black "Najer, Evgeniy"]
[WhiteFideId "35093487"]
[BlackFideId "4118987"]
[WhiteElo "2454"]
[BlackElo "2565"]
[Result "0-1"]
[Round "12"]
[TimeControl "900+10"]
[Date "2021.12.28"]
[WhiteClock "0:00:11"]
[BlackClock "0:02:19"]

1. c4 {[%clk 0:15:19]}  e5 {[%clk 0:15:06]} 2. g3 {[%clk 0:15:19]}  d6 {[%clk 0:15:18]} 3. Bg2 {[%clk 0:15:19]}  f5 {[%clk 0:15:18]} 4. Nc3 {[%clk 0:15:19]}  Nf6 {[%clk 0:15:18]} 5. e3 {[%clk 0:15:19]}  Be7 {[%clk 0:15:18]} 6. Nge2 {[%clk 0:15:19]}  O-O {[%clk 0:15:18]} 7. O-O {[%clk 0:15:19]}  c6 {[%clk 0:15:18]} 8. d3 {[%clk 0:15:19]}  Kh8 {[%clk 0:15:18]} 9. e4 {[%clk 0:14:44]}  Qe8 {[%clk 0:15:26]} 10. f3 {[%clk 0:14:44]}  Be6 {[%clk 0:15:26]} 11. exf5 {[%clk 0:14:44]}  Bxf5 {[%clk 0:15:26]} 12. d4 {[%clk 0:14:44]}  Na6 {[%clk 0:14:48]} 13. a3 {[%clk 0:13:45]}  Qg6 {[%clk 0:14:48]} 14. Qb3 {[%clk 0:13:45]}  exd4 {[%clk 0:13:16]} 15. Nxd4 {[%clk 0:12:59]}  Nc5 {[%clk 0:13:16]} 16. Qa2 {[%clk 0:12:59]}  Rae8 {[%clk 0:10:24]} 17. Be3 {[%clk 0:13:08]}  Bd8 {[%clk 0:10:24]} 18. Nxf5 {[%clk 0:13:08]}  Qxf5 {[%clk 0:10:17]} 19. Bd4 {[%clk 0:10:52]}  Bb6 {[%clk 0:10:17]} 20. Rad1 {[%clk 0:10:52]}  Nd3 {[%clk 0:08:00]} 21. Bxb6 {[%clk 0:10:54]}  axb6 {[%clk 0:08:00]} 22. b4 {[%clk 0:10:54]}  Re3 {[%clk 0:08:00]} 23. Qd2 {[%clk 0:10:54]}  Qe5 {[%clk 0:07:43]} 24. Ne4 {[%clk 0:10:46]}  Qd4 {[%clk 0:05:13]} 25. Nf2 {[%clk 0:10:46]}  Rfe8 {[%clk 0:05:13]} 26. Qc2 {[%clk 0:08:23]}  Qb2 {[%clk 0:04:09]} 27. Qxb2 {[%clk 0:08:23]}  Nxb2 {[%clk 0:04:09]} 28. Rd4 {[%clk 0:05:21]}  c5 {[%clk 0:04:21]} 29. Rxd6 {[%clk 0:05:21]}  Nxc4 {[%clk 0:04:21]} 30. Rd3 {[%clk 0:05:21]}  Nxa3 {[%clk 0:04:21]} 31. f4 {[%clk 0:04:29]}  c4 {[%clk 0:03:20]} 32. Rxe3 {[%clk 0:04:29]}  Rxe3 {[%clk 0:03:20]} 33. Bxb7 {[%clk 0:04:29]}  c3 {[%clk 0:03:12]} 34. Rc1 {[%clk 0:02:27]}  c2 {[%clk 0:03:12]} 35. Kf1 {[%clk 0:02:27]}  h5 {[%clk 0:03:12]} 36. Nh3 {[%clk 0:02:27]}  Ng4 {[%clk 0:03:12]} 37. Ng5 {[%clk 0:02:27]}  Nxh2+ {[%clk 0:03:12]} 38. Kf2 {[%clk 0:01:26]}  Ng4+ {[%clk 0:02:42]} 39. Kf1 {[%clk 0:01:26]}  Rxg3 {[%clk 0:02:42]} 40. Be4 {[%clk 0:01:26]}  h4 {[%clk 0:02:42]} 41. Ke2 {[%clk 0:01:26]}  h3 {[%clk 0:02:19]} 42. Ra1 {[%clk 0:00:11]}  h2 {[%clk 0:02:19]} 43. Bxc2 {[%clk 0:00:11]}  Rg2+ {[%clk 0:02:19]} 44. Kd3 {[%clk 0:00:11]}  Rg1 {[%clk 0:02:19]} 45. Rxa3 {[%clk 0:00:11]}  Rg3+ {[%clk 0:02:19]} 0-1


[Site "http://www.Chess.com"]